bitfinex-derivatives/quotes_BTCF0:USTF0_20230402
["timestamp","ask_amount","ask_price","bid_price","bid_amount"]
[1680460124468,0.02940732,28169.0,28168.0,0.071]
[1680460124868,0.02540732,28169.0,28168.0,0.071]
[1680460125075,0.004,28169.0,28168.0,0.071]
[1680460125469,0.02940943,28169.0,28168.0,0.5843]
[1680460125776,0.004,28169.0,28168.0,0.5843]
[1680460128073,0.16996563,28174.0,28169.0,0.05]
[1680460128271,0.16996563,28174.0,28173.0,0.3716]
[1680460128573,0.071,28175.0,28173.0,0.3716]
[1680460128768,0.071,28175.0,28174.0,0.05]
[1680460128967,0.16996563,28176.0,28174.0,0.121]
[1680460129181,0.16996563,28176.0,28175.0,0.071]
[1680460130474,0.027,28176.0,28175.0,0.122]
[1680460130683,0.027,28176.0,28175.0,0.4935]
[1680460131074,0.16996563,28179.0,28176.0,0.05]
[1680460131275,0.16996563,28180.0,28178.0,0.3717]
[1680460131475,0.16996563,28180.0,28179.0,0.1209]
[1680460131670,0.25506488,28181.0,28179.0,0.1209]
[1680460131877,0.05,28180.0,28179.0,0.05]
[1680460132077,0.05,28180.0,28179.0,0.1209]
[1680460132277,0.25506488,28181.0,28179.0,0.3338]
[1680460132483,0.26006488,28181.0,28180.0,0.0709]
[1680460132782,0.21705286,28181.0,28180.0,0.0709]
[1680460132982,0.21205286,28181.0,28180.0,0.0709]
[1680460134082,0.21205286,28182.0,28180.0,0.1918]
[1680460134280,0.21205286,28182.0,28181.0,0.4217]
[1680460134471,0.21205286,28183.0,28181.0,0.4217]
[1680460134674,0.21205286,28183.0,28182.0,0.1209]
[1680460135785,0.21705286,28183.0,28182.0,0.1219]
[1680460136484,0.005,28183.0,28182.0,0.1219]
[1680460136983,0.005,28183.0,28182.0,0.0719]
[1680460137583,0.055,28183.0,28182.0,0.0719]
[1680460137886,0.26705286,28183.0,28182.0,0.0719]
[1680460138086,0.21705286,28183.0,28182.0,0.0719]
[1680460138283,0.005,28183.0,28182.0,0.0719]
[1680460138678,0.26205286,28184.0,28182.0,0.0709]
[1680460138877,0.005,28183.0,28182.0,0.001]
[1680460139073,0.005,28183.0,28182.0,0.0719]
[1680460140989,0.005,28183.0,28182.0,0.001]
[1680460140990,0.3767,28183.0,28182.0,0.001]
[1680460141491,0.4267,28183.0,28182.0,0.001]
[1680460142988,0.0851232,28183.0,28182.0,0.001]
[1680460146885,0.0141232,28183.0,28182.0,0.1427]
[1680460148189,0.0091232,28183.0,28182.0,0.1417]
[1680460148490,0.005,28183.0,28182.0,0.1427]
[1680460148788,0.001,28183.0,28182.0,0.1417]
[1680460152089,0.001,28183.0,28182.0,0.071]
[1680460157891,0.01012508,28183.0,28182.0,0.071]
[1680460176493,0.17951196,28183.0,28182.0,0.071]
[1680460176704,0.01012508,28183.0,28182.0,0.071]
[1680460177002,0.18002592,28183.0,28182.0,0.3717]
[1680460177207,0.18002592,28183.0,28182.0,0.4217]
[1680460178809,0.17727795,28183.0,28182.0,0.4926]
[1680460179002,0.00737174,28183.0,28182.0,0.4926]
[1680460180398,0.00737174,28183.0,28182.0,0.5046]
[1680460183503,0.00737174,28183.0,28182.0,0.50450029]
[1680460183704,0.00737174,28183.0,28182.0,0.4336]
[1680460188008,0.00486349,28183.0,28182.0,0.4336]
[1680460192107,0.00486349,28183.0,28182.0,0.5042]
[1680460192515,0.00486349,28183.0,28182.0,0.0826]
[1680460206320,0.00348705,28183.0,28182.0,0.0826]
[1680460214223,0.07448705,28183.0,28182.0,0.012]
[1680460217328,0.24439326,28183.0,28182.0,0.012]
[1680460219440,0.24409326,28183.0,28182.0,0.012]
[1680460219635,0.12418705,28183.0,28182.0,0.012]
[1680460219839,0.12418705,28183.0,28182.0,0.01183203]
[1680460220035,0.12418705,28183.0,28182.0,0.01167349]
[1680460220236,0.12418705,28183.0,28182.0,0.01152357]
[1680460220433,0.12418705,28183.0,28182.0,0.01137116]
[1680460220934,0.33623991,28183.0,28182.0,0.01121692]
[1680460221140,0.33623991,28183.0,28182.0,0.01106989]
[1680460221341,0.33623991,28183.0,28182.0,0.01094534]
[1680460221543,0.12418705,28183.0,28182.0,0.01079627]
[1680460221844,0.29417456,28183.0,28182.0,0.01065189]
[1680460222144,0.29417456,28183.0,28182.0,0.01048483]
[1680460222342,0.29417456,28183.0,28182.0,0.01034112]
[1680460222544,0.29417456,28183.0,28182.0,0.01021963]
[1680460222933,0.29417456,28183.0,28182.0,0.01008479]
[1680460225242,0.29447456,28183.0,28182.0,0.01008479]
[1680460225442,0.24447456,28183.0,28182.0,0.01008479]
[1680460228847,0.29447456,28183.0,28182.0,0.01008479]
[1680460229036,0.24447456,28183.0,28182.0,0.01008479]
[1680460230142,0.07448705,28183.0,28182.0,0.01008479]
[1680460230447,0.24447456,28183.0,28182.0,0.01008479]
[1680460230648,0.07448705,28183.0,28182.0,0.01008479]
[1680460231347,0.24447456,28183.0,28182.0,0.01008479]
[1680460232050,0.17347456,28183.0,28182.0,0.01008479]
[1680460232254,0.00348705,28183.0,28182.0,0.01008479]
[1680460236654,0.17347456,28183.0,28182.0,0.01008479]
[1680460237349,0.00348705,28183.0,28182.0,0.01008479]
[1680460237655,0.17347456,28183.0,28182.0,0.01008479]
[1680460239151,0.17347456,28183.0,28181.0,0.3713]
[1680460239560,0.17547456,28183.0,28182.0,0.001]
[1680460239759,0.22547456,28183.0,28182.0,0.001]
[1680460239954,0.22547456,28183.0,28181.0,0.3733]
[1680460240443,0.22547456,28183.0,28181.0,0.3713]
[1680460240651,0.22547456,28183.0,28182.0,0.001]
[1680460241756,0.22547456,28183.0,28181.0,0.3733]
[1680460241957,0.071,28182.0,28181.0,0.3027]
[1680460242149,0.121,28182.0,28181.0,0.3007]
[1680460242351,0.12325148,28182.0,28181.0,0.3007]
[1680460242750,0.12325148,28182.0,28181.0,0.3027]
[1680460242951,0.12325148,28182.0,28181.0,0.002]
[1680460243150,0.12625148,28182.0,28181.0,0.001]
[1680460243351,0.12625148,28182.0,28181.0,0.051]
[1680460243551,0.07625148,28182.0,28181.0,0.051]
[1680460243747,0.07625148,28182.0,28181.0,0.001]
[1680460245452,0.07325148,28182.0,28181.0,0.05]
[1680460245652,0.07625148,28182.0,28181.0,0.051]
[1680460246653,0.07325148,28182.0,28181.0,0.05]
[1680460246960,0.07625148,28182.0,28181.0,0.051]
[1680460248960,0.07425148,28182.0,28180.0,0.1207]
[1680460251863,0.07625148,28182.0,28180.0,0.1217]
[1680460252165,0.00325148,28182.0,28181.0,0.0707]
[1680460253269,0.00225148,28182.0,28181.0,0.0707]
[1680460253563,0.00325148,28182.0,28181.0,0.0707]
[1680460254862,0.05325148,28182.0,28181.0,0.0707]
[1680460255565,0.00325148,28182.0,28181.0,0.0707]
[1680460256158,0.05325148,28182.0,28181.0,0.0707]
[1680460256359,0.29393899,28182.0,28179.0,0.05]
[1680460256657,0.0706,28180.0,28178.0,0.121]
[1680460257063,0.00225306,28179.0,28178.0,0.121]
[1680460257456,0.00225306,28179.0,28178.0,0.071]
[1680460257771,0.49455306,28179.0,28178.0,0.012]
[1680460257961,0.66454057,28179.0,28178.0,0.012]
[1680460258966,0.66554057,28179.0,28173.0,0.9016]
[1680460259168,0.0706,28175.0,28173.0,0.121]
[1680460259468,0.00551782,28174.0,28173.0,0.121]
[1680460261874,0.00551782,28174.0,28173.0,0.126]
[1680460262273,0.071,28176.0,28173.0,0.126]
[1680460262465,0.071,28176.0,28174.0,0.0709]
[1680460262669,0.071,28176.0,28175.0,0.05]
[1680460263169,0.074,28176.0,28175.0,0.05]
[1680460264476,0.074,28176.0,28175.0,0.051]
[1680460265271,0.074,28176.0,28175.0,0.001]
[1680460267280,0.3747,28176.0,28175.0,0.001]
[1680460267574,0.3747,28176.0,28172.0,0.3007]
[1680460267575,0.4452,28176.0,28172.0,0.3007]
[1680460267777,0.071,28173.0,28172.0,0.3007]
[1680460268379,0.071,28173.0,28172.0,0.3017]
[1680460268779,0.071,28173.0,28172.0,0.3127]
[1680460270182,0.071,28173.0,28172.0,0.012]
[1680460274575,0.08408407,28173.0,28172.0,0.012]
[1680460276071,0.05,28172.0,28167.0,0.4214]
[1680460276379,0.0707,28169.0,28167.0,0.4214]
[1680460276876,0.0707,28169.0,28168.0,0.067]
[1680460277278,0.0707,28169.0,28168.0,0.05]
[1680460277486,0.0717,28169.0,28168.0,0.071]
[1680460277880,0.0737,28169.0,28168.0,0.05]
[1680460278675,0.074,28169.0,28168.0,0.05]
[1680460278875,0.071,28169.0,28168.0,0.05]
[1680460279074,0.074,28169.0,28168.0,0.05]
[1680460280279,0.074,28169.0,28167.0,0.4211]
[1680460280683,0.074,28169.0,28167.0,0.0704]
[1680460281983,0.071,28168.0,28166.0,0.1206]
[1680460282578,0.0709,28168.0,28166.0,0.4217]
[1680460283183,0.0709,28168.0,28166.0,0.4257]
[1680460285693,0.0709,28168.0,28166.0,0.4217]
[1680460285882,0.0709,28168.0,28166.0,0.4257]
[1680460286285,0.0709,28168.0,28166.0,0.4217]
[1680460286496,0.0719,28168.0,28166.0,0.4317]
[1680460287694,0.0719,28168.0,28167.0,0.3007]
[1680460287893,0.001,28168.0,28167.0,0.4216]
[1680460288584,0.001,28168.0,28167.0,0.4925]
[1680460288786,0.01308407,28173.0,28169.0,0.05]
[1680460288994,0.05,28177.0,28172.0,0.4424]
[1680460289185,0.05,28177.0,28175.0,0.0708]
[1680460289389,0.121,28178.0,28175.0,0.3715]
[1680460289588,0.01378458,28176.0,28175.0,0.3715]
[1680460289897,0.071,28178.0,28175.0,0.3715]
[1680460290194,0.071,28178.0,28176.0,0.05]
[1680460290387,0.064,28177.0,28176.0,0.05]
[1680460290589,0.05,28177.0,28176.0,0.05]
[1680460290788,0.121,28178.0,28176.0,0.05]
[1680460291188,0.135,28178.0,28176.0,0.052]
[1680460291590,0.085,28178.0,28176.0,0.052]
[1680460291996,0.014,28178.0,28177.0,0.0703]
[1680460293090,0.014,28178.0,28177.0,0.0723]
[1680460293290,0.064,28178.0,28177.0,0.0723]
[1680460293890,0.014,28178.0,28177.0,0.0723]
[1680460297296,0.014,28178.0,28177.0,0.1223]
[1680460298598,0.014,28178.0,28177.0,0.0723]
[1680460302202,0.0845,28178.0,28177.0,0.002]
[1680460304601,0.0983521,28178.0,28177.0,0.002]
[1680460308107,0.0278521,28178.0,28177.0,0.1224]
[1680460308699,0.0278521,28178.0,28177.0,0.1228]
[1680460308893,0.0278521,28178.0,28177.0,0.073]
[1680460310006,0.0278521,28178.0,28177.0,0.3737]
[1680460312010,0.0278521,28178.0,28177.0,0.073]
[1680460315204,0.0278521,28178.0,28177.0,0.3737]
[1680460318700,0.0278521,28178.0,28177.0,0.073]
[1680460323517,0.0278521,28178.0,28177.0,0.1439]
[1680460324205,0.0278521,28178.0,28177.0,0.1939]
[1680460324608,0.16998751,28181.0,28177.0,0.3351]
[1680460324814,0.16998751,28181.0,28180.0,0.4422]
[1680460325010,0.16998751,28182.0,28180.0,0.4422]
[1680460325215,0.16998751,28182.0,28181.0,0.1207]
[1680460326213,0.21205286,28183.0,28181.0,0.1207]
[1680460326415,0.21205286,28183.0,28182.0,0.0708]
[1680460326809,0.21952216,28184.0,28182.0,0.0708]
[1680460327014,0.21952216,28184.0,28183.0,0.071]
[1680460327615,0.21951958,28184.0,28183.0,0.071]
[1680460328112,0.26205286,28185.0,28183.0,0.071]
[1680460328317,0.26205286,28185.0,28184.0,0.0704]
[1680460329216,0.26405286,28185.0,28184.0,0.0724]
[1680460329618,0.21405286,28185.0,28184.0,0.0724]
[1680460329814,0.26405286,28185.0,28184.0,0.0724]
[1680460330017,0.21405286,28185.0,28184.0,0.0724]
[1680460331521,0.21405286,28185.0,28184.0,0.073]
[1680460331821,0.28435286,28185.0,28184.0,0.002]
[1680460332021,0.28485286,28185.0,28184.0,0.002]
[1680460332225,0.28801578,28185.0,28184.0,0.002]
[1680460332811,0.00516292,28185.0,28184.0,0.123]
[1680460333017,0.002,28185.0,28184.0,0.123]
[1680460333522,0.002,28185.0,28184.0,0.12535272]
[1680460334111,0.17166115,28185.0,28184.0,0.12535272]
[1680460335632,0.002,28185.0,28184.0,0.12535272]
[1680460338137,0.002,28185.0,28184.0,0.07535272]
[1680460338534,0.002,28185.0,28184.0,0.12535272]
[1680460339029,0.002,28185.0,28184.0,0.07535272]
[1680460341737,0.17166115,28185.0,28184.0,0.07535272]
[1680460342039,0.16966115,28185.0,28184.0,0.07535272]
[1680460342236,0.17166115,28185.0,28184.0,0.07535272]
[1680460344230,0.002,28185.0,28184.0,0.07535272]
[1680460346238,0.002,28185.0,28184.0,0.12535272]
[1680460346738,0.002,28185.0,28184.0,0.07535272]
[1680460349447,0.002,28185.0,28184.0,0.12535272]
[1680460351547,0.002,28185.0,28184.0,0.07535272]
[1680460353048,0.002,28185.0,28184.0,0.37605272]
[1680460356047,0.05452222,28187.0,28184.0,0.37405272]
[1680460356247,0.002,28185.0,28184.0,0.30636522]
[1680460356448,0.002,28185.0,28184.0,0.37736522]
[1680460358540,0.002,28185.0,28184.0,0.07666522]
[1680460359147,0.002,28185.0,28184.0,0.37736522]
[1680460364555,0.002,28185.0,28184.0,0.37864012]
[1680460369152,0.002,28185.0,28184.0,0.07794012]
[1680460369355,0.002,28185.0,28184.0,0.37864012]
[1680460372855,0.002,28185.0,28184.0,0.37852364]
[1680460376455,0.17166115,28185.0,28184.0,0.37852364]
[1680460376960,0.002,28185.0,28184.0,0.37852364]
[1680460377259,0.002,28185.0,28184.0,0.38000329]
[1680460377454,0.17166115,28185.0,28184.0,0.38000329]
[1680460379562,0.002,28185.0,28184.0,0.38000329]
[1680460383751,0.002,28185.0,28184.0,0.37900329]
[1680460391265,0.17166115,28185.0,28184.0,0.37900329]
[1680460391971,0.17166115,28185.0,28184.0,0.44940329]
[1680460393365,0.002,28185.0,28184.0,0.44940329]
[1680460394163,0.17166115,28185.0,28184.0,0.44940329]
[1680460394363,0.002,28185.0,28184.0,0.44940329]
[1680460399968,0.002,28185.0,28184.0,0.49940329]
[1680460400166,0.002,28185.0,28184.0,0.80010329]
[1680460400369,0.002,28185.0,28184.0,0.80259371]
[1680460400775,0.22296669,28188.0,28185.0,0.05]
[1680460400973,0.22296669,28188.0,28187.0,0.3712]
[1680460402681,0.22496669,28188.0,28187.0,0.3712]
[1680460402880,0.22496669,28188.0,28187.0,0.3722]
[1680460403584,0.22496669,28188.0,28187.0,0.4222]
[1680460403776,0.16966115,28189.0,28187.0,0.4925]
[1680460403983,0.05,28190.0,28189.0,0.071]
[1680460404175,0.16966115,28191.0,28189.0,0.192]
[1680460404376,0.16966115,28191.0,28190.0,0.1206]
[1680460404584,0.21966115,28192.0,28190.0,0.1206]
[1680460404787,0.21966115,28192.0,28191.0,0.371]
[1680460405081,0.16966115,28192.0,28191.0,0.371]
[1680460405475,0.16966115,28193.0,28191.0,0.5838]
[1680460405675,0.16966115,28194.0,28192.0,0.192]
[1680460405882,0.16966115,28194.0,28193.0,0.142]
[1680460406077,0.16966115,28194.0,28193.0,0.192]
[1680460406676,0.16966115,28195.0,28193.0,0.194]
[1680460406983,0.16966115,28195.0,28194.0,0.3717]
[1680460407385,0.16966115,28195.0,28194.0,0.5847]
[1680460407783,0.16966115,28196.0,28194.0,0.5847]
[1680460407985,0.05,28195.0,28194.0,0.4427]
[1680460408175,0.16966115,28197.0,28194.0,0.4428]
[1680460408383,0.48526115,28200.0,28196.0,0.3007]
[1680460408685,0.3007,28204.0,28196.0,0.3007]
[1680460408686,0.21966115,28201.0,28199.0,0.4426]
[1680460408874,0.16966115,28201.0,28200.0,0.192]
[1680460409278,0.38171401,28201.0,28200.0,0.192]
[1680460409478,0.21205286,28201.0,28200.0,0.192]
[1680460409679,0.21205286,28201.0,28200.0,0.16911497]
[1680460409879,0.21205286,28201.0,28200.0,0.17111497]
[1680460410584,0.26205286,28202.0,28200.0,0.17111497]
[1680460410777,0.26205286,28202.0,28201.0,0.0709]
[1680460410984,0.26205286,28202.0,28201.0,0.1209]
[1680460411285,0.21205286,28202.0,28201.0,0.0709]
[1680460412084,0.21205286,28202.0,28201.0,0.0729]
[1680460412280,0.21205286,28203.0,28201.0,0.1229]
[1680460412481,0.05,28202.0,28201.0,0.052]
[1680460412682,0.05,28202.0,28201.0,0.123]
[1680460412890,0.05,28203.0,28201.0,0.123]
[1680460413087,0.22143889,28204.0,28203.0,0.142]
[1680460413389,0.22143889,28204.0,28203.0,0.284]
[1680460413982,0.22143889,28204.0,28203.0,0.286]
[1680460414485,0.05224392,28204.0,28203.0,0.286]
[1680460414690,0.16919497,28205.0,28203.0,0.286]
[1680460414884,0.16919497,28205.0,28204.0,0.071]
[1680460415078,0.16919497,28205.0,28204.0,0.121]
[1680460415289,0.16919497,28205.0,28204.0,0.071]
[1680460415489,0.21919497,28205.0,28204.0,0.071]
[1680460416791,0.3507,28206.0,28204.0,0.071]
[1680460416990,0.3507,28206.0,28205.0,0.071]
[1680460417184,0.3007,28206.0,28205.0,0.071]
[1680460417384,0.10445871,28207.0,28205.0,0.071]
[1680460417585,0.10445871,28207.0,28206.0,0.0706]
[1680460417586,0.05445871,28207.0,28206.0,0.0706]
[1680460417781,0.05,28208.0,28206.0,0.3713]
[1680460418089,0.16919497,28209.0,28207.0,0.1203]
[1680460418290,0.16919497,28209.0,28208.0,0.071]
[1680460418482,0.21919497,28209.0,28208.0,0.071]
[1680460418689,0.05,28209.0,28208.0,0.071]
[1680460419188,0.52304639,28210.0,28208.0,0.142]
[1680460419388,0.35385142,28210.0,28209.0,0.142]
[1680460420184,0.3007,28210.0,28209.0,0.073]
[1680460420392,0.3007,28210.0,28209.0,0.1934]
[1680460420594,0.3007,28210.0,28209.0,0.1434]
[1680460420991,0.3007,28210.0,28209.0,0.0724]
[1680460421496,0.3007,28210.0,28209.0,0.1432]
[1680460423205,0.3007,28210.0,28209.0,0.1412]
[1680460423412,0.3007,28210.0,28209.0,0.1432]
[1680460424408,0.46989497,28210.0,28209.0,0.1432]
[1680460424607,0.46989497,28210.0,28209.0,0.18122775]
[1680460425800,0.16919497,28210.0,28209.0,0.18122775]
[1680460427412,0.16919497,28211.0,28209.0,0.18122775]
[1680460427612,0.16919497,28211.0,28210.0,0.071]
[1680460428214,0.21919497,28211.0,28210.0,0.071]
[1680460429208,0.21919497,28211.0,28210.0,0.073]
[1680460429603,0.16919497,28211.0,28210.0,0.0724]
[1680460429803,0.21919497,28211.0,28210.0,0.0724]
[1680460430611,0.16919497,28211.0,28210.0,0.0724]
[1680460431011,0.05,28211.0,28210.0,0.0724]
[1680460432106,0.05,28211.0,28210.0,0.1427]
[1680460432914,0.3507,28212.0,28210.0,0.1427]
[1680460433115,0.3507,28212.0,28211.0,0.283]
[1680460433314,0.3007,28212.0,28211.0,0.283]
[1680460433514,0.05,28213.0,28211.0,0.0702]
[1680460433715,0.05,28213.0,28212.0,0.0709]
[1680460434821,0.05,28213.0,28212.0,0.0729]
[1680460435317,0.05,28213.0,28212.0,0.0723]
[1680460436118,0.05,28214.0,28212.0,0.1432]
[1680460436312,0.05,28214.0,28213.0,0.0709]
[1680460436618,0.21919497,28214.0,28213.0,0.0706]
[1680460437318,0.51989497,28214.0,28212.0,0.002]
[1680460437517,0.53889497,28214.0,28213.0,0.0724]
[1680460438516,0.53889497,28214.0,28213.0,0.1433]
[1680460438517,0.18819497,28214.0,28213.0,0.1433]
[1680460438713,0.019,28214.0,28213.0,0.0729]
[1680460439316,0.019,28214.0,28213.0,0.3736]
[1680460439823,0.019,28214.0,28213.0,0.41054878]
[1680460440213,0.019,28214.0,28213.0,0.55234878]
[1680460440417,0.019,28214.0,28213.0,0.62334878]
[1680460440618,0.019,28214.0,28213.0,0.48134878]
[1680460441211,0.019,28214.0,28213.0,0.41084878]
[1680460443523,0.019,28214.0,28213.0,0.55314878]
[1680460443728,0.019,28214.0,28213.0,0.41054878]
[1680460444222,0.017,28214.0,28213.0,0.41054878]
[1680460444426,0.067,28214.0,28213.0,0.41054878]
[1680460445030,0.017,28214.0,28213.0,0.41054878]
[1680460445326,0.067,28214.0,28213.0,0.41054878]
[1680460445527,0.017,28214.0,28213.0,0.41054878]
[1680460446531,0.18419497,28214.0,28213.0,0.41054878]
[1680460446927,0.27006488,28214.0,28213.0,0.41054878]
[1680460447820,0.015,28214.0,28213.0,0.41054878]
[1680460448222,0.015,28214.0,28213.0,0.10984878]
[1680460448422,0.27006488,28214.0,28210.0,0.0704]
[1680460448624,0.28179549,28211.0,28208.0,0.1209]
[1680460448928,0.16887424,28209.0,28208.0,0.1209]
[1680460449128,0.21887424,28209.0,28208.0,0.0709]
[1680460450031,0.21887424,28209.0,28208.0,0.0719]
[1680460450425,0.21987424,28209.0,28208.0,0.0849]
[1680460450726,0.051,28209.0,28208.0,0.0849]
[1680460451025,0.05,28209.0,28208.0,0.0719]
[1680460452727,0.26109549,28209.0,28208.0,0.0719]
[1680460454429,0.05,28209.0,28208.0,0.0719]
[1680460455228,0.21914554,28210.0,28208.0,0.0719]
[1680460455624,0.54074554,28209.0,28208.0,0.001]
[1680460456029,0.3716,28209.0,28208.0,0.001]
[1680460456430,0.4216,28209.0,28208.0,0.03351524]
[1680460456636,0.63269549,28209.0,28208.0,0.03351524]
[1680460457932,0.63269549,28209.0,28208.0,0.03251524]
[1680460458128,0.64969549,28209.0,28208.0,0.002]
[1680460461934,0.72029549,28209.0,28208.0,0.002]
[1680460466444,0.72029549,28209.0,28208.0,0.03313744]
[1680460466637,0.72029549,28209.0,28208.0,0.002]
[1680460467948,0.64969549,28209.0,28208.0,0.002]
[1680460469840,0.64969549,28209.0,28208.0,0.03313744]
[1680460470444,0.59969549,28209.0,28208.0,0.03313744]
[1680460472049,0.59959549,28209.0,28208.0,0.03313744]
[1680460472251,0.29889549,28209.0,28208.0,0.03313744]
[1680460472440,0.29689549,28209.0,28208.0,0.03313744]
[1680460474838,0.29689549,28209.0,28208.0,0.45403744]
[1680460474839,0.16957504,28209.0,28208.0,0.45403744]
[1680460475041,0.16957504,28211.0,28209.0,0.05]
[1680460475246,0.16957504,28211.0,28210.0,0.0709]
[1680460475544,0.21957504,28212.0,28210.0,0.0709]
[1680460475744,0.21957504,28212.0,28211.0,0.3007]
[1680460475944,0.16957504,28212.0,28211.0,0.3716]
[1680460476545,0.17157504,28212.0,28211.0,0.3716]
[1680460476946,0.21309549,28212.0,28211.0,0.3726]
[1680460478053,0.21109549,28212.0,28211.0,0.3716]
[1680460478252,0.21309549,28212.0,28211.0,0.3726]
[1680460478654,0.21309549,28212.0,28211.0,0.5853]
[1680460479553,0.21309549,28212.0,28211.0,0.5843]
[1680460480450,0.002,28212.0,28211.0,0.5843]
[1680460480756,0.21109549,28213.0,28211.0,0.5863]
[1680460480955,0.21109549,28213.0,28212.0,0.1412]
[1680460481153,0.21109549,28213.0,28212.0,0.1912]
[1680460481754,0.21309549,28213.0,28212.0,0.1912]
[1680460482155,0.21109549,28213.0,28212.0,0.1932]
[1680460482352,0.21109549,28213.0,28212.0,0.1432]
[1680460484157,0.21309549,28213.0,28212.0,0.1422]
[1680460484349,0.38258727,28213.0,28212.0,0.1422]
[1680460484550,0.17149178,28213.0,28212.0,0.1422]
[1680460484757,0.17149178,28213.0,28212.0,0.17667512]
[1680460484952,0.002,28213.0,28212.0,0.17667512]
[1680460485258,0.16949178,28214.0,28212.0,0.52837512]
[1680460485557,0.16949178,28214.0,28213.0,0.1203]
[1680460486152,0.16949178,28215.0,28213.0,0.1203]
[1680460486455,0.16949178,28215.0,28214.0,0.0707]
[1680460487057,0.002,28215.0,28214.0,0.0707]
[1680460487254,0.052,28215.0,28214.0,0.0707]
[1680460487449,0.05,28215.0,28214.0,0.0707]
[1680460487651,0.052,28215.0,28214.0,0.0707]
[1680460489556,0.21943653,28215.0,28214.0,0.0707]
[1680460489855,0.22143653,28215.0,28214.0,0.0707]
[1680460491854,0.052,28215.0,28214.0,0.0707]
[1680460492058,0.30706488,28215.0,28214.0,0.0707]
[1680460492260,0.25706488,28215.0,28214.0,0.0707]
[1680460494356,0.46881001,28215.0,28214.0,0.0707]
[1680460494555,0.21374513,28215.0,28214.0,0.0707]
[1680460494756,0.26374513,28215.0,28214.0,0.0707]
[1680460495959,0.21374513,28215.0,28214.0,0.0707]
[1680460496665,0.26374513,28215.0,28214.0,0.0707]
[1680460497168,0.21374513,28215.0,28214.0,0.0707]
[1680460499366,0.002,28215.0,28214.0,0.0707]
[1680460499664,0.17134693,28215.0,28214.0,0.10517546]
[1680460500667,0.002,28215.0,28214.0,0.10517546]
[1680460500856,0.17134693,28215.0,28214.0,0.10517546]
[1680460501062,0.002,28215.0,28214.0,0.10517546]
[1680460502464,0.17134693,28215.0,28214.0,0.10517546]
[1680460507071,0.24224693,28215.0,28214.0,0.03447546]
[1680460507265,0.05,28214.0,28212.0,0.0709]
[1680460507571,0.28964693,28214.0,28212.0,0.0709]
[1680460507771,0.1203,28214.0,28212.0,0.0709]
[1680460508569,0.28964693,28214.0,28212.0,0.0709]
[1680460509068,0.28964693,28214.0,28212.0,0.0729]
[1680460510568,0.23964693,28214.0,28212.0,0.0729]
[1680460511175,0.16934693,28214.0,28213.0,0.0707]
[1680460511871,0.16934693,28215.0,28213.0,0.0707]
[1680460512081,0.16934693,28215.0,28214.0,0.0703]
[1680460513074,0.16934693,28215.0,28214.0,0.0723]
[1680460514280,0.26174513,28216.0,28214.0,0.0723]
[1680460514573,0.26174513,28215.0,28214.0,0.002]
[1680460514778,0.26174513,28215.0,28214.0,0.0729]
[1680460514972,0.05,28215.0,28214.0,0.10307187]
[1680460515171,0.05,28215.0,28214.0,0.10107187]
[1680460515569,0.05,28215.0,28214.0,0.10307187]
[1680460515774,0.30506488,28216.0,28214.0,0.10307187]
[1680460516071,0.30506488,28216.0,28215.0,0.0705]
[1680460516981,0.30706488,28216.0,28215.0,0.0705]
[1680460517386,0.37746488,28216.0,28214.0,0.03117187]
[1680460517577,0.32526488,28215.0,28214.0,0.03117187]
[1680460517777,0.37526488,28215.0,28214.0,0.03117187]
[1680460517974,0.37526488,28215.0,28214.0,0.001]
[1680460518175,0.37526488,28215.0,28213.0,0.0709]
[1680460518482,0.26204969,28214.0,28213.0,0.0709]
[1680460518682,0.05,28214.0,28213.0,0.0709]
[1680460519076,0.30506488,28214.0,28213.0,0.0709]
[1680460519582,0.30506488,28214.0,28213.0,0.0729]
[1680460519778,0.30506488,28214.0,28213.0,0.10307187]
[1680460520878,0.25506488,28214.0,28213.0,0.10307187]
[1680460521178,0.25506488,28214.0,28213.0,0.17357187]
[1680460521982,0.46737439,28214.0,28213.0,0.10307187]
[1680460522183,0.21230951,28214.0,28213.0,0.10307187]
[1680460524779,0.25506488,28215.0,28213.0,0.10307187]
[1680460524979,0.25506488,28215.0,28214.0,0.0705]
[1680460525682,0.25706488,28215.0,28214.0,0.0705]
[1680460526593,0.25506488,28215.0,28214.0,0.0705]
[1680460526777,0.25706488,28215.0,28214.0,0.0705]
[1680460529589,0.29912999,28215.0,28214.0,0.0705]
[1680460531981,0.29912999,28215.0,28214.0,0.0709]
[1680460534578,0.29912999,28215.0,28214.0,0.1010722]
[1680460536887,0.55411311,28215.0,28214.0,0.1010722]
[1680460537193,0.25698312,28215.0,28214.0,0.1010722]
[1680460539094,0.30698312,28215.0,28214.0,0.1010722]
[1680460539602,0.25698312,28215.0,28214.0,0.1010722]
[1680460539791,0.55768312,28215.0,28214.0,0.1010722]
[1680460540191,0.56068312,28215.0,28214.0,0.1030722]
[1680460541294,0.55568312,28215.0,28214.0,0.1020722]
[1680460541499,0.56068312,28215.0,28214.0,0.1020722]
[1680460542093,0.56068312,28215.0,28214.0,0.1016722]
[1680460542400,0.61068312,28215.0,28214.0,0.1016722]
[1680460547299,0.3557,28215.0,28214.0,0.1016722]
[1680460547703,0.3057,28215.0,28214.0,0.1016722]
[1680460548407,0.56068915,28215.0,28214.0,0.1016722]
[1680460548606,0.56068915,28215.0,28214.0,0.1020722]
[1680460551708,0.25998915,28215.0,28214.0,0.1020722]
[1680460551904,0.005,28215.0,28214.0,0.1020722]
[1680460552506,0.055,28215.0,28214.0,0.1020722]
[1680460552807,0.005,28215.0,28214.0,0.1020722]
[1680460553006,0.055,28215.0,28214.0,0.1020722]